Cogmind - Beta 9.3 @@@ ROGUE MODE // 2019.12.25 @ 19:33:24 Player: Demise Result: Destroyed by H-55 Commando with Gauss Rifle Performance ------------- Evolutions (0) 0 Regions Visited (3) 600 Robots Destroyed (32) 160 Value Destroyed (645) 645 Prototype IDs (24) 480 Alien Tech Used (0) 0 Bonus (300) 300 TOTAL SCORE: 2185 Bonus ------- Aligned with FarCom 300 Cogmind --------- Core Integrity 0/250 Matter 255/300 Energy 84/100 System Corruption 0% Temperature Cool (0) Movement Core (1350) Ox26 Location -10/Exiles Parts ------- > --- POWER (1) -------- (None) > --- PROPULSION (2) --- (None) > --- UTILITY (2) ------ Humpback > --- WEAPON (2) ------- (None) > --- INVENTORY (24) --- High-capacity Storage Unit High-capacity Storage Unit High-capacity Storage Unit High-capacity Storage Unit High-capacity Storage Unit High-capacity Storage Unit Medium Matter Pod (100) Medium Matter Pod (100) Medium Matter Pod (100) Medium Matter Pod (100) Improved Terrain Scanner Seismic Analyzer Medium Armor Plating Medium Armor Plating PSU Rigger Mining Laser Peak State ------------ > --- POWER ------------ Light Nuclear Core > --- PROPULSION ------- Aluminum Leg Aluminum Leg > --- UTILITY ---------- High-capacity Storage Unit Medium Armor Plating > --- WEAPON ----------- EM Shotgun Small Laser > --- INVENTORY -------- High-capacity Storage Unit High-capacity Storage Unit High-capacity Storage Unit Medium Matter Pod Medium Matter Pod Signal Interpreter Improved Terrain Scanner Seismic Analyzer Medium Armor Plating PSU Rigger Grenade Launcher Mining Laser [Rating: 13] Favorites ----------- Power Light Nuclear Core Engine Ion Engine Power Core Light Nuclear Core Propulsion Aluminum Leg Leg Aluminum Leg Utility Medium Armor Plating Device Improved Terrain Scanner Storage High-capacity Storage Unit Protection Medium Armor Plating Weapon EM Shotgun Energy Gun EM Shotgun Energy Cannon Beam Cannon Launcher Grenade Launcher Special Weapon Mining Laser Build | -11 -10 -10 -10 ------- Run | Scr Mat Min Exi Slots Evolved . | . . . . Power . | . . . . Propulsion . | . . . . Utility . | . . . . Weapon . | . . . . Parts Attached 21 | 8 10 1 2 Power 3 | 1 2 . . Engine 2 | 1 1 . . Core 1 | . 1 . . Reactor . | . . . . Propulsion 3 | 2 1 . . Treads . | . . . . Leg 3 | 2 1 . . Wheel . | . . . . Hover . | . . . . Flight . | . . . . Utility 7 | 3 3 . 1 Device 2 | 2 . . . Storage 4 | 1 2 . 1 Processor . | . . . . Hackware . | . . . . Protection 1 | . 1 . . Artifact . | . . . . Weapon 8 | 2 4 1 1 Energy Gun 5 | 2 2 1 . Energy Cannon 1 | . 1 . . Ballistic Gun . | . . . . Ballistic Cannon . | . . . . Launcher 1 | . . . 1 Special Weapon 1 | . 1 . . Impact Weapon . | . . . . Slashing Weapon . | . . . . Piercing Weapon . | . . . . Special Melee Weapon . | . . . . Unidentified Prototypes . | . . . . Parts Lost 10 | . 3 1 6 Power 2 | . 1 . 1 Propulsion 3 | . 1 . 2 Utility . | . . . . Weapon 5 | . 1 1 3 Highest Loss Streak 6 | . 2 1 6 Average Slot Usage (%) 95 | . 94 100 94 Engine 4 | . 9 . . Core 8 | . 4 14 13 Leg 25 | . 23 28 27 Device 4 | . 9 . . Storage 14 | . 14 14 14 Protection 8 | . 4 14 10 Energy Gun 19 | . 16 17 26 Energy Cannon 6 | . 7 10 . Special Weapon 1 | . 2 . . Naked Turns . | . . . . Heaviest Build 89 | 13 50 50 89 Greatest Support 20 | 20 20 20 20 Greatest Overweight (x) 26 | 1 2 2 26 Average Overweight (x) 1 | . 1 2 2 Largest Inventory Capacity 24 | 6 12 12 24 Average Capacity 10 | 5 9 12 14 Most Carried 17 | 6 12 12 17 Average Carried 9 | 3 8 11 11 Final Capacity 24 | 6 12 12 24 Final Carried 16 | 4 12 11 16 Class Distribution -------------------- 96% | Mutant 3% | Hauler-Mutant Dominant Class ---------------- Mutant | -10/Materials Mutant | -10/Mines Mutant | -10/Exiles Resources | -11 -10 -10 -10 ----------- Run | Scr Mat Min Exi Matter Collected 642 | 370 195 47 30 Remotely . | . . . . Salvage Created 1017 | 311 432 37 237 Parts 67 | 24 19 3 21 Haulers Intercepted 2 | . 2 . . Recyclers Shooed 1 | 1 . . . Parts Field Recycled . | . . . . Retrieved Matter . | . . . . Parts Self-Destructed . | . . . . Prevented . | . . . . Kills | -11 -10 -10 -10 ------- Run | Scr Mat Min Exi Combat Hostiles Destroyed 18 | . 9 2 7 Guns 6 | . 4 2 . Cannons 3 | . 3 . . AOE 7 | . . . 7 Classes Destroyed 7 | 3 3 . 1 Worker 2 | 2 . . . Tunneler 9 | 9 . . . Hauler 2 | . 2 . . Recycler 1 | 1 . . . Swarmer 5 | . 3 2 . Grunt 11 | . 6 . 5 Programmer 2 | . . . 2 Best Kill Streak 7 | 4 3 2 7 Combat Bots Only 7 | . 3 2 7 Max Kills in Single Turn 3 | 1 2 1 3 Gunslinging 1 | . 1 . . Exploded 3 | . . . 3 Melee . | . . . . Uniques/NPCs Destroyed . | . . . . Combat | -11 -10 -10 -10 -------- Run | Scr Mat Min Exi Damage Taken 1213 | . 603 143 467 Core 250 | . 168 32 50 Absorbed by Shields . | . . . . Core Remaining (%) 100 | 100 . . . Volleys Fired 98 | 37 42 6 13 Largest 2 | 2 2 2 1 Hottest 105 | 90 105 85 45 Shots Fired 161 | 67 71 10 13 Gun 138 | 67 52 10 9 Cannon 16 | . 16 . . Launcher 4 | . . . 4 Special 3 | . 3 . . Kinetic . | . . . . Thermal 129 | 67 58 4 . Explosive 4 | . . . 4 Electromagnetic 28 | . 13 6 9 Robot Hit Streak 11 | 10 11 4 11 Robot Miss Streak 3 | 3 3 3 2 Penetration Max . | . . . . Secondary Targets 1 | . 1 . . Max Gunslinging Chain 1 | . 1 . . Shots Hit Robots 114 | 42 55 6 11 Core Hits 46 | 13 19 3 11 Critical Hits . | . . . . Critical Kills . | . . . . Critical Parts Destroyed . | . . . . Melee Attacks . | . . . . Impact . | . . . . Slashing . | . . . . Piercing . | . . . . Sneak Attacks . | . . . . Combat Hostiles . | . . . . Follow-up Attacks . | . . . . Damage Inflicted 1761 | 506 689 44 522 Guns 1103 | 506 529 44 24 Cannons 160 | . 160 . . Explosions 498 | . . . 498 Melee . | . . . . Ramming . | . . . . Kinetic . | . . . . Thermal 1027 | 506 509 12 . Explosive 498 | . . . 498 Electromagnetic 236 | . 180 32 24 Impact . | . . . . Slashing . | . . . . Piercing . | . . . . Highest Corruption . | . . . . Average Corruption . | . . . . Corruption Purged . | . . . . Overload Shots . | . . . . Overflow Damage . | . . . . Projectiles . | . . . . Explosions . | . . . . Melee . | . . . . Knockbacks . | . . . . Impact . | . . . . Kinetic . | . . . . Secondary . | . . . . Self-Inflicted Damage 24 | . . . 24 Shots 1 | . . . 1 Rammed . | . . . . Targets Rammed . | . . . . Kicked . | . . . . Crushed . | . . . . Highest Temperature 384 | 384 273 128 32 Average Temperature 100 | 120 101 51 15 Received Heat Transfer 336 | . 312 . 24 Effects 5 | 4 1 . . Shutdowns 1 | 1 . . . Interference 3 | 2 1 . . Damage (minor) 1 | 1 . . . Siege Activations . | . . . . Robots Corrupted 1 | . 1 . . Combat Hostiles 1 | . 1 . . Parts Fried 1 | . 1 . . Impact Corruptions . | . . . . Robots Melted 1 | . 1 . . Combat Hostiles 1 | . 1 . . Parts Melted 6 | 1 5 . . Heat Transferred 2615 | 1375 1215 25 . Parts Sabotaged . | . . . . Parts Stolen . | . . . . Parts Stripped . | . . . . Power Chain Reactions . | . . . . Missiles Intercepted . | . . . . Alert | -11 -10 -10 -10 ------- Run | Scr Mat Min Exi Peak Influence 154 | 60 154 62 . Average Influence 44 | 29 65 7 . Maximum Alert Level . | . . . . Low Security (%) 100 | 100 100 100 . Level 1 . | . . . . Level 2 . | . . . . Level 3 . | . . . . Level 4 . | . . . . Level 5 . | . . . . High Security . | . . . . Max Security . | . . . . Squads Dispatched 1 | . 1 . . Investigation . | . . . . Extermination . | . . . . Reinforcement 1 | . 1 . . Assault . | . . . . Garrison . | . . . . Intercept . | . . . . Construction Impeded . | . . . . Haulers Reinforced . | . . . . Stealth | -11 -10 -10 -10 --------- Run | Scr Mat Min Exi Distress Signals 1 | . 1 . . Communications Jammed . | . . . . Distress Signals . | . . . . Times Spotted 34 | . 20 3 11 Peak Tracking Total 7 | . 4 3 7 Tactical Retreats 2 | . 1 1 . Traps | -11 -10 -10 -10 ------- Run | Scr Mat Min Exi Traps Triggered 1 | . 1 . . Indirectly . | . . . . Trap Hack Attempts . | . . . . Triggered . | . . . . Disarmed . | . . . . Reprogrammed . | . . . . Reused . | . . . . Traps Extracted . | . . . . Installed . | . . . . Triggered . | . . . . Machines | -11 -10 -10 -10 ---------- Run | Scr Mat Min Exi Machines Disabled 3 | . . . 3 Max in Single Turn 1 | . . . 1 Machines Sabotaged . | . . . . Garrisons Compromised . | . . . . Overloaded Fab Kills . | . . . . Fab Network Shutdowns . | . . . . Hacking | -11 -10 -10 -10 --------- Run | Scr Mat Min Exi Machines Accessed 7 | . 6 . 1 Terminals 4 | . 4 . . Fabricators . | . . . . Repair Stations 1 | . 1 . . Recycling Units 1 | . 1 . . Scanalyzers . | . . . . Garrison Access . | . . . . Total Hacks 21 | . 20 . 1 Successful 15 | . 14 . 1 Failed 6 | . 6 . . Catastrophic . | . . . . Database Lockouts . | . . . . Manual 6 | . 5 . 1 Terminals 13 | . 13 . . Fabricators . | . . . . Repair Stations 3 | . 3 . . Recycling Units 4 | . 4 . . Scanalyzers . | . . . . Garrison Access . | . . . . Terminal Hacks 7 | . 6 . 1 Prototype ID Bank 1 | . 1 . . Branch Access Points 1 | . 1 . . Hauler Manifests 2 | . 2 . . Registered Components 1 | . 1 . . Registered Prototypes 1 | . 1 . . EX-Prototype ID Bank 1 | . . . 1 Fabricator Hacks . | . . . . Repair Station Hacks 1 | . 1 . . Scan Component 1 | . 1 . . Recycling Unit Hacks 3 | . 3 . . Process 1 | . 1 . . Report Inventory 1 | . 1 . . Retrieve Matter 1 | . 1 . . Scanalyzer . | . . . . Garrison Access Hacks . | . . . . Unauthorized Hacks 8 | . 8 . . Terminals 4 | . 4 . . Botnet 4 | . 4 . . Fabricators . | . . . . Repair Stations . | . . . . Recycling Units . | . . . . Scanalyzers . | . . . . Garrison Access . | . . . . Data Cores Recovered . | . . . . Used . | . . . . Hacking Detections 3 | . 3 . . Full Trace Events 1 | . 1 . . Feedback Events . | . . . . Feedback Blocked . | . . . . Robot Schematics Acquired . | . . . . Robots Built . | . . . . Matter . | . . . . Time . | . . . . Total Robot Build Rating . | . . . . Part Schematics Acquired . | . . . . Parts Built . | . . . . Matter . | . . . . Time . | . . . . Total Part Build Rating . | . . . . Parts Repaired . | . . . . Time . | . . . . Parts Recycled . | . . . . Recycled Matter 73 | . 73 . . Retrieved Matter 73 | . 73 . . Retrieved Components . | . . . . Parts Scanalyzed . | . . . . Part Schematics Acquired . | . . . . Parts Damaged . | . . . . Bothacking | -11 -10 -10 -10 ------------ Run | Scr Mat Min Exi Used RIF Installer . | . . . . Robots Hacked . | . . . . Non-combat . | . . . . Combat . | . . . . Robot Hacks Applied . | . . . . Relay Couplers Released . | . . . . Robots Rewired . | . . . . Allies Hacked . | . . . . Hacks Repelled . | . . . . Allies | -11 -10 -10 -10 -------- Run | Scr Mat Min Exi Total Allies . | . . . . Largest Group . | . . . . Highest-Rated Group . | . . . . Highest-Rated Ally . | . . . . Total Orders . | . . . . Ally Attacks . | . . . . Total Damage . | . . . . Kills . | . . . . Allies Corrupted . | . . . . Allies Melted . | . . . . Intel | -11 -10 -10 -10 ------- Run | Scr Mat Min Exi Robot Analysis Total . | . . . . Derelict Logs Recovered . | . . . . Drone Launches . | . . . . Drone Recoveries . | . . . . Exploration | -11 -10 -10 -10 ------------- Run | Scr Mat Min Exi Turns Passed 2243 | 272 1046 485 440 Spaces Moved 1145 | 121 553 260 211 Core 7 | 6 . . 1 Treads . | . . . . Legs 1138 | 115 553 260 210 Wheels . | . . . . Hover . | . . . . Flight . | . . . . Fastest Speed 50 | 50 120 180 180 Average Speed 163 | 118 155 180 191 Slowest Speed 1350 | 150 180 180 1350 Overloaded Moves . | . . . . Propulsion Burnouts . | . . . . Robots Hopped . | . . . . Cave-ins Triggered . | . . . . Exploration Rate (%) 44 | 4 77 40 57 Regions Visited 3 Branch Regions 2 Pre-discovered Areas . | . . . . Known Exits Taken 1 | . 1 . . Unknown Exits Taken 2 | 1 . 1 . Scrap Searched 2 | . . 2 . Spaces Dug 3 | . 3 . . Terrain Destroyed 33 | . 3 . 30 Melee . | . . . . Projectile 3 | . 3 . . AOE 30 | . . . 30 Actions | -11 -10 -10 -10 --------- Run | Scr Mat Min Exi Total 1362 | 181 667 267 247 Wait 47 | . 41 1 5 Move 1142 | 120 552 259 211 Hop . | . . . . Pick Up 37 | 10 13 . 14 Fast Attach 12 | 7 4 . 1 Attach 3 | . 1 1 1 Detach 1 | . 1 . . Swap 6 | 1 5 . . Drop 16 | 6 8 . 2 Fire 98 | 37 42 6 13 Melee . | . . . . Ram . | . . . . Kick . | . . . . Crush . | . . . . Escape Stasis . | . . . . Rewire . | . . . . Trap . | . . . . Miscellaneous . | . . . . Route ------- -11/Scrapyard -10/Materials (discovered 3 exits: [*Mat x2] / *Min) -10/Mines -10/Exiles (discovered 1 exit: [*Min]) History --------- Turn | Location | Event 7 | -11/Scrapyard | Discovered new exit (range 15) 273 | -11/Scrapyard | Entered Materials 307 | -10/Materials | Build established: Mutant 361 | -10/Materials | Identified exit to Mines 721 | -10/Materials | Discovered new exit (range 7) 752 | -10/Materials | Core integrity fell below 50% 1081 | -10/Materials | Discovered new exit (range 16) 1319 | -10/Materials | Entered Mines 1796 | -10/Mines | Deemed a non-threat by the Exiles lab entrance 1796 | -10/Mines | Discovered new exit (range 5) 1804 | -10/Mines | Entered Exiles 1828 | -10/Exiles | Discovered new exit (range 15) 1849 | -10/Exiles | Met 8R-AWN 1880 | -10/Exiles | Met EX-HEX 1930 | -10/Exiles | Met EX-BIN 1950 | -10/Exiles | Aligned with FarCom system 1952 | -10/Exiles | Given EX-Vault access code 1993 | -10/Exiles | Opened EX-Vault 2010 | -10/Exiles | Found PSU Rigger 2048 | -10/Exiles | Warned to stay clear of 0b10 Research branches 2067 | -10/Exiles | Exiles lab attacked by MAIN.C 2232 | -10/Exiles | Core integrity fell below 20% 2244 | -10/Exiles | Destroyed by H-55 Commando with Gauss Rifle Last Messages --------------- 02232_ Slug penetrates P-60 Hacker. 02234_ EM Shotgun destroyed. 02235_ Components damaged. 02236_ G-34 Mercenary destroyed. 02236_ P-60 Hacker destroyed. 02236_ Components damaged. 02238_ G-34 Mercenary destroyed. 02238_ Components damaged. 02238_ Penetrated by Slug. 02239_ The unstable cave ceiling collapses. 02240_ G-34 Mercenary destroyed. 02240_ Penetrated by Slug. 02241_ Machine disabled. 02241_ Penetrated by Slug. 02242_ G-34 Mercenary destroyed. 02242_ Machine disabled. 02242_ Penetrated by Slug. 02242_ Grenade Launcher destroyed. 02243_ Slug penetrates Earth. 02244_ Penetrated by Slug. Map ----- +----------------------------------------------------+ | ? " """#? | | ? " "#? | | ?# " "## | | ??#" ""# | | ??#""" """""" "" | | ??#" ######""" | | ??"" ""##????#####""" | | ??""" """##?????????##""" | | ??"" """##???????????#"""" | | ??"" ""#????????????#"" | | ?"" ########???###"""" | | ?""" ##a a####""" | | ?"" """" | | ?#"" | | ??"""" h | | ??# h " | | ??#" " * h " """ | | ???"""" " [% """ " " ""#" | | ???"" ""# =%h ####""" """##""""""" | | ???? """"## |%= ##?###""""??######## | | ???""" """## #???###???????????? | | ???? ""### = #?????????????????? | | ????"" """### %*[ #?????????????????? | | ?????""" #??# ==%|!"#?????????????????? | | ???????""" #?????# !! ="#?????????????????? | | ????????? ??????##@## ###?????????????????? | | ?????????### ???????# ##??#???????????????????? | | ???????????## ???????# ????????????????????????? | | ?????????????? ????????##????????????????????????? | | ?????????????????????????????????????????????????? | | ?????????????????????????????????????????????????? | | ?????????????????????????????????????????????????? | | ?????????????????????????????????????????????????? | | ?????????????????????????????????????????????????? | | ?????????????????????????????????????????????????? | | ?????????????????????????????????????????????????? | | ?????????????????????????????????????????????????? | | ?????????????????????????????????????????????????? | | ?????????????????????????????????????????????????? | | ?????????????????????????????????????????????????? | | ?????????????????????????????????????????????????? | | ?????????????????????????????????????????????????? | | ?????????????????????????????????????????????????? | | ?????????????????????????????????????????????????? | | ?????????????????????????????????????????????????? | | ?????????????????????????????????????????????????? | | ?????????????????????????????????????????????????? | | ?????????????????????????????????????????????????? | | ?????????????????????????????????????????????????? | | ?????????????????????????????????????????????????? | +----------------------------------------------------+ Best States ------------- Heat Dissipation 25 Energy Generation 14 Energy Capacity 250 Matter Stores 300 Matter Capacity 300 Sight Range 16 Terrain Scan Range 16 Terrain Scan Density 10 Armor Coverage 225 Evasion (%) 40 Item Schematics ----------------- None Robot Schematics ------------------ None Fabricated ------------ Nothing Alien Tech Used ----------------- None Achievements -------------- None Challenges ------------ None Game ------ Seed ControlTacticalBeam Manual? 0 Play Time 00:17:13 Cumulative 156.2 hours Start 2019.12.25 @ 19:16:45 End 2019.12.25 @ 19:33:24 Sessions 1 Manual Loads 0 Difficulty Rogue Special Mode None Game No. 213 Rogue 202 Adventurer 11 Explorer 0 Win Type - Total 0 Types 0/0/0/0/0/0/0 Lore% 48 Gallery% 59 Achievement% 42 Wizard Run 0 Options --------- ASCII 0 Keyboard 1 Movement Numpad Keybinds 0 Fullscreen 1 Font 12/Terminus Map View 83x54 Tactical HUD 1 Map Filters NONE Filters NONE Steam X RUN: 760fd35a-649b-4665-8256-6fec8a257d69